[Event "Early-Titled-Tuesday-Blitz-October-10-2023"]
[Site "Chess.com"]
[Date "2023.10.10"]
[Round "2"]
[White "RETURNOFTHELAGGER"]
[Black "McCarthyStone"]
[Result "0-1"]
[WhiteElo "2670"]
[BlackElo "2403"]
[TimeControl "180+1"]
[EndTime "8:14:34 PDT"]
[Termination "McCarthyStone won by resignation"]

1. e4 {[%clk 0:02:51.3]} 1... e5 {[%clk 0:02:59.9]} 2. Nf3 {[%clk 0:02:51.4]}
2... d6 {[%clk 0:03:00.5]} 3. c3 {[%clk 0:02:51]} 3... Nf6 {[%clk 0:03:00.6]} 4.
Qc2 {[%clk 0:02:40.8]} 4... g6 {[%clk 0:02:58.5]} 5. d4 {[%clk 0:02:36.1]} 5...
Nbd7 {[%clk 0:02:58.8]} 6. Bd3 {[%clk 0:02:35.4]} 6... Bg7 {[%clk 0:02:59]} 7.
O-O {[%clk 0:02:35.4]} 7... O-O {[%clk 0:02:59.7]} 8. h3 {[%clk 0:02:34.6]} 8...
Re8 {[%clk 0:03:00.1]} 9. Re1 {[%clk 0:02:30.3]} 9... c6 {[%clk 0:02:57.9]} 10.
Nbd2 {[%clk 0:02:30.9]} 10... Qc7 {[%clk 0:02:55.5]} 11. Nf1 {[%clk 0:02:31.5]}
11... a5 {[%clk 0:02:52.1]} 12. a4 {[%clk 0:02:31.8]} 12... b6 {[%clk
0:02:50.7]} 13. N1h2 {[%clk 0:02:27.8]} 13... Bb7 {[%clk 0:02:50.8]} 14. Be3
{[%clk 0:02:15.3]} 14... c5 {[%clk 0:02:43.8]} 15. d5 {[%clk 0:02:13.7]} 15...
c4 {[%clk 0:02:44.2]} 16. Bf1 {[%clk 0:02:14.4]} 16... Nc5 {[%clk 0:02:44.6]}
17. Nd2 {[%clk 0:02:10.5]} 17... Ba6 {[%clk 0:02:40.8]} 18. Bxc4 {[%clk
0:00:57.9]} 18... Bxc4 {[%clk 0:02:36.5]} 19. Nxc4 {[%clk 0:00:58.8]} 19...
Ncxe4 {[%clk 0:02:27]} 20. Nxb6 {[%clk 0:00:59]} 20... Rab8 {[%clk 0:02:23.3]}
21. Ra3 {[%clk 0:00:55.6]} 21... Rxb6 {[%clk 0:02:19.8]} 22. Bxb6 {[%clk
0:00:54.3]} 22... Qxb6 {[%clk 0:02:17.4]} 23. Rxe4 {[%clk 0:00:54.8]} 23... Nxe4
{[%clk 0:02:18]} 24. Qxe4 {[%clk 0:00:55.7]} 24... Qxb2 {[%clk 0:02:18.5]} 0-1

[Event "Early-Titled-Tuesday-Blitz-October-10-2023"]
[Site "Chess.com"]
[Date "2023.10.10"]
[Round "2"]
[White "Cheer_Down"]
[Black "GAusal"]
[Result "0-1"]
[WhiteElo "2492"]
[BlackElo "2293"]
[TimeControl "180+1"]
[EndTime "8:14:42 PDT"]
[Termination "GAusal won by resignation"]

1. e4 {[%clk 0:03:00.9]} 1... e5 {[%clk 0:02:59.9]} 2. Nf3 {[%clk 0:03:00.3]}
2... Nc6 {[%clk 0:02:59.1]} 3. Bc4 {[%clk 0:02:59.8]} 3... d6 {[%clk 0:02:56.2]}
4. O-O {[%clk 0:02:55.4]} 4... f5 {[%clk 0:02:53.5]} 5. d3 {[%clk 0:02:52.8]}
5... Na5 {[%clk 0:02:49]} 6. Nc3 {[%clk 0:02:45.1]} 6... Nxc4 {[%clk 0:02:48.3]}
7. dxc4 {[%clk 0:02:46]} 7... Nf6 {[%clk 0:02:44.2]} 8. Re1 {[%clk 0:02:33.9]}
8... Be7 {[%clk 0:02:43.7]} 9. Nd5 {[%clk 0:02:26.4]} 9... Nxe4 {[%clk
0:02:39.5]} 10. Nxe7 {[%clk 0:02:23]} 10... Qxe7 {[%clk 0:02:38.6]} 11. c5
{[%clk 0:02:19.7]} 11... O-O {[%clk 0:02:34.7]} 12. cxd6 {[%clk 0:02:19.5]}
12... cxd6 {[%clk 0:02:34.1]} 13. c4 {[%clk 0:02:17.7]} 13... b6 {[%clk
0:02:32.5]} 14. b3 {[%clk 0:02:11.6]} 14... Bb7 {[%clk 0:02:31.9]} 15. Ba3
{[%clk 0:02:09.6]} 15... Rad8 {[%clk 0:02:27.9]} 16. Qe2 {[%clk 0:01:54.9]}
16... Nc3 {[%clk 0:02:26.4]} 17. Qd3 {[%clk 0:01:48.5]} 17... Ne4 {[%clk
0:02:23.4]} 18. Rad1 {[%clk 0:01:43.9]} 18... h6 {[%clk 0:02:19.5]} 19. Qc2
{[%clk 0:01:42.2]} 19... Qf6 {[%clk 0:02:15.2]} 20. Nd2 {[%clk 0:01:40.1]} 20...
Qg6 {[%clk 0:02:09.4]} 21. Nf3 {[%clk 0:01:26.5]} 21... Ng5 {[%clk 0:01:57.4]}
22. Nxg5 {[%clk 0:01:22]} 22... Qxg5 {[%clk 0:01:56.3]} 23. f4 {[%clk
0:01:14.8]} 23... Qxf4 {[%clk 0:01:51.3]} 24. Rxd6 {[%clk 0:01:13.5]} 24... Rxd6
{[%clk 0:01:46.8]} 25. Bxd6 {[%clk 0:01:14.4]} 25... Qd4+ {[%clk 0:01:43.9]} 0-1

[Event "Early-Titled-Tuesday-Blitz-October-10-2023"]
[Site "Chess.com"]
[Date "2023.10.10"]
[Round "2"]
[White "Korchmar_Vasiliy"]
[Black "LeoWin2012"]
[Result "1-0"]
[WhiteElo "2720"]
[BlackElo "2323"]
[TimeControl "180+1"]
[EndTime "8:14:48 PDT"]
[Termination "Korchmar_Vasiliy won by resignation"]

1. e4 {[%clk 0:03:00.9]} 1... c5 {[%clk 0:02:57.7]} 2. d4 {[%clk 0:03:00.9]}
2... cxd4 {[%clk 0:02:57.5]} 3. Qxd4 {[%clk 0:03:01.8]} 3... Nc6 {[%clk
0:02:57]} 4. Qd3 {[%clk 0:03:02.2]} 4... g6 {[%clk 0:02:56.7]} 5. Nc3 {[%clk
0:03:02.3]} 5... Bg7 {[%clk 0:02:56.6]} 6. Nf3 {[%clk 0:03:02.7]} 6... e6 {[%clk
0:02:56.4]} 7. Nb5 {[%clk 0:02:53.7]} 7... Nb4 {[%clk 0:02:43.5]} 8. Qd6 {[%clk
0:02:32.2]} 8... Nxc2+ {[%clk 0:02:35.1]} 9. Kd1 {[%clk 0:02:32.1]} 9... Qa5
{[%clk 0:01:57.1]} 10. Kxc2 {[%clk 0:02:22.1]} 10... Kd8 {[%clk 0:01:47.2]} 11.
Bg5+ {[%clk 0:02:00]} 11... f6 {[%clk 0:01:46]} 12. Bd2 {[%clk 0:01:53.2]} 12...
Qa4+ {[%clk 0:01:41.7]} 13. Kc1 {[%clk 0:01:42.5]} 13... Qxe4 {[%clk 0:01:26.4]}
14. Qc7+ {[%clk 0:01:34.5]} 14... Ke7 {[%clk 0:01:20.2]} 15. Qc5+ {[%clk
0:01:34.7]} 15... Kd8 {[%clk 0:01:17.8]} 16. Nd6 {[%clk 0:01:18]} 1-0

[Event "Early-Titled-Tuesday-Blitz-October-10-2023"]
[Site "Chess.com"]
[Date "2023.10.10"]
[Round "2"]
[White "viktorgen2021"]
[Black "wqws"]
[Result "0-1"]
[WhiteElo "2376"]
[BlackElo "2655"]
[TimeControl "180+1"]
[EndTime "8:15:02 PDT"]
[Termination "wqws won by resignation"]

1. d4 {[%clk 0:02:55.5]} 1... Nf6 {[%clk 0:02:58.3]} 2. c4 {[%clk 0:02:53.5]}
2... g6 {[%clk 0:02:58.6]} 3. Nf3 {[%clk 0:02:53.2]} 3... Bg7 {[%clk 0:02:59.3]}
4. g3 {[%clk 0:02:53.9]} 4... O-O {[%clk 0:02:59.1]} 5. Bg2 {[%clk 0:02:54.5]}
5... c6 {[%clk 0:02:59.5]} 6. O-O {[%clk 0:02:54.9]} 6... d6 {[%clk 0:02:58.6]}
7. Nc3 {[%clk 0:02:54.9]} 7... Na6 {[%clk 0:02:55.2]} 8. h3 {[%clk 0:02:55]}
8... Nc7 {[%clk 0:02:55.3]} 9. e4 {[%clk 0:02:55.2]} 9... Nd7 {[%clk 0:02:54.4]}
10. Re1 {[%clk 0:02:52.2]} 10... e5 {[%clk 0:02:53.2]} 11. dxe5 {[%clk
0:02:39.7]} 11... Nxe5 {[%clk 0:02:53.1]} 12. Nxe5 {[%clk 0:02:34.8]} 12... dxe5
{[%clk 0:02:54]} 13. Qxd8 {[%clk 0:02:22.2]} 13... Rxd8 {[%clk 0:02:48.3]} 14.
Be3 {[%clk 0:02:21.8]} 14... Ne6 {[%clk 0:02:45.4]} 15. Rad1 {[%clk 0:02:21.5]}
15... Nd4 {[%clk 0:02:45.7]} 16. f4 {[%clk 0:02:20.2]} 16... Be6 {[%clk
0:02:45]} 17. fxe5 {[%clk 0:02:18.1]} 17... Nc2 {[%clk 0:02:45.1]} 18. Bg5
{[%clk 0:02:04.1]} 18... Rxd1 {[%clk 0:02:43.4]} 19. Rxd1 {[%clk 0:02:04.8]}
19... Bxe5 {[%clk 0:02:43.4]} 20. Rd2 {[%clk 0:01:56.3]} 20... Ne1 {[%clk
0:02:30.8]} 21. Bf4 {[%clk 0:01:41.2]} 21... Bxf4 {[%clk 0:02:28]} 22. gxf4
{[%clk 0:01:41.8]} 22... Nxg2 {[%clk 0:02:28.1]} 23. Kxg2 {[%clk 0:01:41.7]}
23... Bxc4 {[%clk 0:02:25.7]} 24. Rd7 {[%clk 0:01:38.7]} 24... b5 {[%clk
0:02:25.3]} 25. Rc7 {[%clk 0:01:34.8]} 25... Rd8 {[%clk 0:02:21.3]} 26. b3
{[%clk 0:01:30.9]} 26... Rd2+ {[%clk 0:02:20]} 27. Kg1 {[%clk 0:01:28.1]} 27...
b4 {[%clk 0:02:15.5]} 28. Na4 {[%clk 0:01:16.9]} 28... Rxa2 {[%clk 0:01:52.9]}
29. bxc4 {[%clk 0:01:14.9]} 29... Rxa4 {[%clk 0:01:52.6]} 30. Rxc6 {[%clk
0:01:14.7]} 30... Ra2 {[%clk 0:01:52.4]} 31. c5 {[%clk 0:01:12.4]} 31... b3
{[%clk 0:01:50.4]} 0-1

[Event "Early-Titled-Tuesday-Blitz-October-10-2023"]
[Site "Chess.com"]
[Date "2023.10.10"]
[Round "2"]
[White "SaqoChess_Twitch"]
[Black "Hooded_Old_Man"]
[Result "1-0"]
[WhiteElo "2617"]
[BlackElo "2361"]
[TimeControl "180+1"]
[EndTime "8:15:04 PDT"]
[Termination "SaqoChess_Twitch won by resignation"]

1. d4 {[%clk 0:03:00.9]} 1... d5 {[%clk 0:03:00.5]} 2. c4 {[%clk 0:03:01.1]}
2... e6 {[%clk 0:03:00.5]} 3. Nc3 {[%clk 0:03:01.8]} 3... Be7 {[%clk 0:03:00.3]}
4. Nf3 {[%clk 0:03:01.6]} 4... Nf6 {[%clk 0:03:00.1]} 5. Bg5 {[%clk 0:03:02.2]}
5... O-O {[%clk 0:03:00.5]} 6. e3 {[%clk 0:03:01.3]} 6... Nbd7 {[%clk 0:03:01]}
7. cxd5 {[%clk 0:03:01]} 7... Nxd5 {[%clk 0:03:00.4]} 8. Bxe7 {[%clk 0:03:00.5]}
8... Qxe7 {[%clk 0:03:01.3]} 9. Nxd5 {[%clk 0:03:01.1]} 9... exd5 {[%clk
0:03:01.5]} 10. Bd3 {[%clk 0:03:02]} 10... c5 {[%clk 0:03:01]} 11. O-O {[%clk
0:02:55.8]} 11... c4 {[%clk 0:03:00.3]} 12. Bc2 {[%clk 0:02:54.3]} 12... Nf6
{[%clk 0:03:00.9]} 13. Rc1 {[%clk 0:02:54.2]} 13... Bg4 {[%clk 0:03:00.5]} 14.
h3 {[%clk 0:02:53.6]} 14... Bh5 {[%clk 0:03:00.5]} 15. Bf5 {[%clk 0:02:46]}
15... b5 {[%clk 0:02:54.3]} 16. g4 {[%clk 0:02:45.5]} 16... Bg6 {[%clk
0:02:53.9]} 17. Bxg6 {[%clk 0:02:44.1]} 17... hxg6 {[%clk 0:02:53.2]} 18. Ne5
{[%clk 0:02:45]} 18... Nd7 {[%clk 0:02:49]} 19. f4 {[%clk 0:02:45]} 19... Nxe5
{[%clk 0:02:47]} 20. dxe5 {[%clk 0:02:40.5]} 20... Rfd8 {[%clk 0:02:45]} 21. Qd4
{[%clk 0:02:40.5]} 21... Rac8 {[%clk 0:02:39.3]} 22. Kg2 {[%clk 0:02:39]} 22...
b4 {[%clk 0:02:39.1]} 23. Rf2 {[%clk 0:02:37.7]} 23... Qc5 {[%clk 0:02:36.6]}
24. Rd1 {[%clk 0:02:35.6]} 24... Qxd4 {[%clk 0:02:36.3]} 25. Rxd4 {[%clk
0:02:35.8]} 25... Rc5 {[%clk 0:02:35.1]} 26. Kf3 {[%clk 0:02:33.3]} 26... Kf8
{[%clk 0:02:23.8]} 27. h4 {[%clk 0:02:33.2]} 27... Ke7 {[%clk 0:02:23.7]} 28. f5
{[%clk 0:02:30.5]} 28... gxf5 {[%clk 0:02:22.6]} 29. gxf5 {[%clk 0:02:30.5]}
29... a5 {[%clk 0:02:12]} 30. Rg2 {[%clk 0:02:30.1]} 30... Kf8 {[%clk
0:02:09.8]} 31. h5 {[%clk 0:02:29.3]} 31... a4 {[%clk 0:02:09.4]} 32. Rdg4
{[%clk 0:02:29.1]} 32... Re8 {[%clk 0:01:57.8]} 33. f6 {[%clk 0:02:16]} 33...
Rxe5 {[%clk 0:01:54.2]} 34. fxg7+ {[%clk 0:01:55.6]} 34... Kg8 {[%clk
0:01:53.8]} 35. Rh4 {[%clk 0:01:55.6]} 35... d4 {[%clk 0:01:42.6]} 36. h6 {[%clk
0:01:47.5]} 36... Rf5+ {[%clk 0:01:38]} 37. Ke2 {[%clk 0:01:45.4]} 37... d3+
{[%clk 0:01:37.5]} 38. Ke1 {[%clk 0:01:45.7]} 38... Rh5 {[%clk 0:01:21]} 39. h7+
{[%clk 0:01:45]} 39... Rxh7 {[%clk 0:01:20.3]} 40. Rxh7 {[%clk 0:01:45]} 1-0

[Event "Early-Titled-Tuesday-Blitz-October-10-2023"]
[Site "Chess.com"]
[Date "2023.10.10"]
[Round "2"]
[White "Actuary44"]
[Black "WiktoriaPOL"]
[Result "1-0"]
[WhiteElo "2515"]
[BlackElo "2292"]
[TimeControl "180+1"]
[EndTime "8:15:06 PDT"]
[Termination "Actuary44 won by checkmate"]

1. e4 {[%clk 0:03:00.9]} 1... c5 {[%clk 0:02:57.2]} 2. d4 {[%clk 0:03:01.4]}
2... cxd4 {[%clk 0:02:56.5]} 3. c3 {[%clk 0:03:02]} 3... Nf6 {[%clk 0:02:55.2]}
4. Bd3 {[%clk 0:03:00.7]} 4... Nc6 {[%clk 0:02:46.5]} 5. f4 {[%clk 0:02:59.3]}
5... dxc3 {[%clk 0:02:44.2]} 6. Nxc3 {[%clk 0:02:58.3]} 6... d6 {[%clk
0:02:44.5]} 7. Nf3 {[%clk 0:02:57.9]} 7... g6 {[%clk 0:02:40.6]} 8. O-O {[%clk
0:02:58.3]} 8... Bg7 {[%clk 0:02:39.5]} 9. Kh1 {[%clk 0:02:58.8]} 9... O-O
{[%clk 0:02:39.3]} 10. Qe1 {[%clk 0:02:59.5]} 10... b6 {[%clk 0:02:30.3]} 11.
Be3 {[%clk 0:02:59.5]} 11... Bb7 {[%clk 0:02:29.5]} 12. Rd1 {[%clk 0:02:59.3]}
12... Rc8 {[%clk 0:02:25.3]} 13. Qh4 {[%clk 0:02:55.4]} 13... Nb4 {[%clk
0:02:21.5]} 14. Bb1 {[%clk 0:02:54]} 14... Nd7 {[%clk 0:02:17.1]} 15. Ng5 {[%clk
0:02:45.5]} 15... h6 {[%clk 0:02:15.6]} 16. Nf3 {[%clk 0:02:45.6]} 16... Nc5
{[%clk 0:02:09]} 17. f5 {[%clk 0:02:38.3]} 17... Ba6 {[%clk 0:01:50.5]} 18. Bxh6
{[%clk 0:02:27.8]} 18... Bxf1 {[%clk 0:01:46]} 19. Ng5 {[%clk 0:02:19.8]} 19...
Ba6 {[%clk 0:01:02.3]} 20. Bxg7 {[%clk 0:02:16.6]} 20... Kxg7 {[%clk 0:01:02.2]}
21. f6+ {[%clk 0:02:09.3]} 21... Kxf6 {[%clk 0:00:54]} 22. e5+ {[%clk
0:01:58.9]} 22... Kxe5 {[%clk 0:00:28.2]} 23. Qd4# {[%clk 0:01:52.7]} 1-0

[Event "Early-Titled-Tuesday-Blitz-October-10-2023"]
[Site "Chess.com"]
[Date "2023.10.10"]
[Round "2"]
[White "Juicy_Fork"]
[Black "Ishowmoves57"]
[Result "1-0"]
[WhiteElo "2462"]
[BlackElo "2176"]
[TimeControl "180+1"]
[EndTime "8:15:09 PDT"]
[Termination "Juicy_Fork won by resignation"]

1. e4 {[%clk 0:03:00.9]} 1... c5 {[%clk 0:02:56.4]} 2. Nf3 {[%clk 0:03:00.5]}
2... Nc6 {[%clk 0:02:56.3]} 3. d4 {[%clk 0:03:01.2]} 3... cxd4 {[%clk
0:02:56.8]} 4. Nxd4 {[%clk 0:03:00.3]} 4... e5 {[%clk 0:02:57.4]} 5. Nb5 {[%clk
0:03:00.5]} 5... d6 {[%clk 0:02:56.9]} 6. N1c3 {[%clk 0:02:59.5]} 6... a6 {[%clk
0:02:57.1]} 7. Na3 {[%clk 0:02:59.6]} 7... b5 {[%clk 0:02:57.4]} 8. Nd5 {[%clk
0:02:59.3]} 8... Be7 {[%clk 0:02:57]} 9. c4 {[%clk 0:02:57.6]} 9... b4 {[%clk
0:02:50.8]} 10. Nc2 {[%clk 0:02:38.1]} 10... Rb8 {[%clk 0:02:41.3]} 11. Nce3
{[%clk 0:02:33.2]} 11... Nf6 {[%clk 0:02:41.2]} 12. Bd3 {[%clk 0:02:32.3]} 12...
Nxd5 {[%clk 0:02:37.2]} 13. Nxd5 {[%clk 0:02:28]} 13... O-O {[%clk 0:02:32.8]}
14. O-O {[%clk 0:02:27.4]} 14... Be6 {[%clk 0:02:31.9]} 15. Be3 {[%clk
0:02:20.6]} 15... Bxd5 {[%clk 0:02:20.2]} 16. cxd5 {[%clk 0:02:06.3]} 16... Nd4
{[%clk 0:02:13.1]} 17. Bxa6 {[%clk 0:02:04.3]} 17... Qb6 {[%clk 0:02:03.8]} 18.
Bd3 {[%clk 0:01:58.2]} 18... Rfc8 {[%clk 0:01:58.2]} 19. b3 {[%clk 0:01:50.3]}
19... Rc3 {[%clk 0:01:53.6]} 20. Bc4 {[%clk 0:01:46.6]} 20... Rc8 {[%clk
0:01:38.9]} 21. Qg4 {[%clk 0:01:17.6]} 21... Rxe3 {[%clk 0:01:08]} 22. Qxc8+
{[%clk 0:01:15.2]} 1-0

[Event "Early-Titled-Tuesday-Blitz-October-10-2023"]
[Site "Chess.com"]
[Date "2023.10.10"]
[Round "2"]
[White "Road2GM3000"]
[Black "wannabe2700"]
[Result "0-1"]
[WhiteElo "2378"]
[BlackElo "2680"]
[TimeControl "180+1"]
[EndTime "8:15:12 PDT"]
[Termination "wannabe2700 won on time"]

1. d4 {[%clk 0:02:59.6]} 1... Nf6 {[%clk 0:02:58]} 2. c4 {[%clk 0:02:59.9]} 2...
Ng8 {[%clk 0:02:58.9]} 3. Nc3 {[%clk 0:02:59.8]} 3... Nc6 {[%clk 0:02:59.3]} 4.
e4 {[%clk 0:02:59.7]} 4... Nb8 {[%clk 0:03:00.2]} 5. f4 {[%clk 0:03:00]} 5...
Nc6 {[%clk 0:03:00.2]} 6. Nf3 {[%clk 0:03:00.2]} 6... Nb8 {[%clk 0:03:01.1]} 7.
Bd3 {[%clk 0:03:00.1]} 7... Nf6 {[%clk 0:03:01.2]} 8. O-O {[%clk 0:03:00.4]}
8... Ng8 {[%clk 0:03:01.8]} 9. Be3 {[%clk 0:03:00.4]} 9... e6 {[%clk 0:03:02]}
10. f5 {[%clk 0:02:54.3]} 10... Nf6 {[%clk 0:03:01.6]} 11. fxe6 {[%clk
0:02:44.8]} 11... dxe6 {[%clk 0:03:00.9]} 12. e5 {[%clk 0:02:42.5]} 12... Ng4
{[%clk 0:03:00.8]} 13. Bg5 {[%clk 0:02:42.7]} 13... Be7 {[%clk 0:03:00.9]} 14.
Bxe7 {[%clk 0:02:38.4]} 14... Qxe7 {[%clk 0:03:01.8]} 15. Ne4 {[%clk 0:02:36.2]}
15... Ne3 {[%clk 0:03:01.5]} 16. Qd2 {[%clk 0:02:36]} 16... Nxf1 {[%clk
0:03:01.4]} 17. Rxf1 {[%clk 0:02:36.7]} 17... h6 {[%clk 0:02:59.6]} 18. d5
{[%clk 0:01:53.8]} 18... exd5 {[%clk 0:02:59.4]} 19. cxd5 {[%clk 0:01:53.8]}
19... O-O {[%clk 0:02:59.3]} 20. Qf4 {[%clk 0:01:48.1]} 20... Nd7 {[%clk
0:02:55.6]} 21. Qf5 {[%clk 0:01:13.4]} 21... Re8 {[%clk 0:02:30.9]} 22. e6
{[%clk 0:00:17]} 22... Nf8 {[%clk 0:02:26.6]} 23. Ne5 {[%clk 0:00:04.9]} 23...
fxe6 {[%clk 0:02:25.3]} 24. dxe6 {[%clk 0:00:03.7]} 24... Bxe6 {[%clk
0:02:25.9]} 25. Qf4 {[%clk 0:00:03.6]} 25... Bd5 {[%clk 0:02:22]} 0-1

[Event "Early-Titled-Tuesday-Blitz-October-10-2023"]
[Site "Chess.com"]
[Date "2023.10.10"]
[Round "2"]
[White "JAN2404"]
[Black "ploxoi"]
[Result "0-1"]
[WhiteElo "2070"]
[BlackElo "2433"]
[TimeControl "180+1"]
[EndTime "8:15:19 PDT"]
[Termination "ploxoi won by checkmate"]

1. e4 {[%clk 0:03:00.9]} 1... c5 {[%clk 0:02:59.2]} 2. Nf3 {[%clk 0:03:00.4]}
2... e6 {[%clk 0:02:59.4]} 3. d4 {[%clk 0:02:56.4]} 3... cxd4 {[%clk 0:03:00.3]}
4. Nxd4 {[%clk 0:02:56.4]} 4... Nc6 {[%clk 0:03:01]} 5. Nc3 {[%clk 0:02:52.4]}
5... Qc7 {[%clk 0:03:00.9]} 6. Be3 {[%clk 0:02:36.6]} 6... a6 {[%clk 0:03:00.8]}
7. Be2 {[%clk 0:02:17.9]} 7... Nf6 {[%clk 0:02:57.4]} 8. O-O {[%clk 0:02:15.1]}
8... Be7 {[%clk 0:02:55.8]} 9. f3 {[%clk 0:00:39.2]} 9... O-O {[%clk 0:02:52.5]}
10. Qd2 {[%clk 0:00:38.5]} 10... b5 {[%clk 0:02:51.1]} 11. a3 {[%clk 0:00:38]}
11... Bb7 {[%clk 0:02:50.8]} 12. Rad1 {[%clk 0:00:26.9]} 12... Rac8 {[%clk
0:02:50]} 13. Nb3 {[%clk 0:00:19.2]} 13... d6 {[%clk 0:02:47]} 14. h3 {[%clk
0:00:15.7]} 14... Ne5 {[%clk 0:02:44.7]} 15. f4 {[%clk 0:00:12.6]} 15... Nc4
{[%clk 0:02:44.5]} 16. Bxc4 {[%clk 0:00:12.7]} 16... Qxc4 {[%clk 0:02:45.4]} 17.
Qd3 {[%clk 0:00:12]} 17... Nxe4 {[%clk 0:02:43.3]} 18. Qxc4 {[%clk 0:00:11.9]}
18... Rxc4 {[%clk 0:02:41.9]} 19. Nd4 {[%clk 0:00:12.8]} 19... Nxc3 {[%clk
0:02:41.4]} 20. bxc3 {[%clk 0:00:12.2]} 20... Rxc3 {[%clk 0:02:42.3]} 21. Rd3
{[%clk 0:00:11.1]} 21... Rfc8 {[%clk 0:02:41.4]} 22. Rfd1 {[%clk 0:00:10.5]}
22... Be4 {[%clk 0:02:41.2]} 23. R3d2 {[%clk 0:00:10.2]} 23... Bf6 {[%clk
0:02:39.6]} 24. Kf2 {[%clk 0:00:09.4]} 24... d5 {[%clk 0:02:36.8]} 25. Ne2
{[%clk 0:00:08.2]} 25... Rxa3 {[%clk 0:02:36.2]} 26. g4 {[%clk 0:00:05.4]} 26...
Bh4+ {[%clk 0:02:32.6]} 27. Kf1 {[%clk 0:00:04.8]} 27... Rxe3 {[%clk 0:02:30]}
28. c4 {[%clk 0:00:05]} 28... Rf3+ {[%clk 0:02:25.6]} 29. Kg1 {[%clk 0:00:03.9]}
29... Rxh3 {[%clk 0:02:25.7]} 30. cxd5 {[%clk 0:00:03.4]} 30... Rh1# {[%clk
0:02:25.9]} 0-1

[Event "Early-Titled-Tuesday-Blitz-October-10-2023"]
[Site "Chess.com"]
[Date "2023.10.10"]
[Round "2"]
[White "Ermito2020"]
[Black "Arash_Tahbaz"]
[Result "0-1"]
[WhiteElo "2605"]
[BlackElo "2935"]
[TimeControl "180+1"]
[EndTime "8:15:22 PDT"]
[Termination "Arash_Tahbaz won by resignation"]

1. e4 {[%clk 0:03:00.9]} 1... g6 {[%clk 0:02:59.1]} 2. d4 {[%clk 0:03:00.2]}
2... Bg7 {[%clk 0:03:00]} 3. Nc3 {[%clk 0:03:00.8]} 3... d6 {[%clk 0:02:59.6]}
4. Be3 {[%clk 0:03:00.9]} 4... Nd7 {[%clk 0:02:59.8]} 5. h4 {[%clk 0:03:00.7]}
5... h6 {[%clk 0:02:59.8]} 6. Qd2 {[%clk 0:02:58]} 6... a6 {[%clk 0:03:00]} 7.
h5 {[%clk 0:02:28.1]} 7... g5 {[%clk 0:03:00.3]} 8. f4 {[%clk 0:02:27.3]} 8...
gxf4 {[%clk 0:03:01.2]} 9. Bxf4 {[%clk 0:02:28]} 9... b5 {[%clk 0:02:56.7]} 10.
Nf3 {[%clk 0:02:24.3]} 10... Bb7 {[%clk 0:02:56.8]} 11. Bd3 {[%clk 0:02:23.7]}
11... c5 {[%clk 0:02:38.1]} 12. dxc5 {[%clk 0:02:23.2]} 12... Nxc5 {[%clk
0:02:27.5]} 13. O-O {[%clk 0:02:03.2]} 13... Nf6 {[%clk 0:02:23.8]} 14. e5
{[%clk 0:01:49.2]} 14... Nxh5 {[%clk 0:02:12.4]} 15. Be3 {[%clk 0:01:44.5]}
15... Ng3 {[%clk 0:02:04.4]} 16. exd6 {[%clk 0:01:27.5]} 16... Nxf1 {[%clk
0:01:50.2]} 17. Rxf1 {[%clk 0:01:28.4]} 17... Qxd6 {[%clk 0:01:46.2]} 18. Bxb5+
{[%clk 0:01:10.1]} 18... axb5 {[%clk 0:01:34.7]} 19. Qf2 {[%clk 0:01:11]} 19...
Ne4 {[%clk 0:01:08.4]} 20. Qd2 {[%clk 0:01:11.9]} 20... Nxd2 {[%clk 0:01:08.4]}
0-1

[Event "Early-Titled-Tuesday-Blitz-October-10-2023"]
[Site "Chess.com"]
[Date "2023.10.10"]
[Round "2"]
[White "lolo9292"]
[Black "Rosh1610"]
[Result "1-0"]
[WhiteElo "2158"]
[BlackElo "2438"]
[TimeControl "180+1"]
[EndTime "8:15:25 PDT"]
[Termination "lolo9292 won by checkmate"]

1. d4 {[%clk 0:03:00.9]} 1... Nf6 {[%clk 0:02:57.9]} 2. Nf3 {[%clk 0:02:57.9]}
2... d5 {[%clk 0:02:57.4]} 3. Bf4 {[%clk 0:02:57.2]} 3... e6 {[%clk 0:02:57.6]}
4. e3 {[%clk 0:02:56.7]} 4... Bd6 {[%clk 0:02:58]} 5. Bg3 {[%clk 0:02:56.5]}
5... O-O {[%clk 0:02:58.5]} 6. Nbd2 {[%clk 0:02:55.1]} 6... c5 {[%clk
0:02:58.2]} 7. c3 {[%clk 0:02:54.3]} 7... Qc7 {[%clk 0:02:58.2]} 8. Ne5 {[%clk
0:02:54.3]} 8... Nbd7 {[%clk 0:02:51.3]} 9. f4 {[%clk 0:02:53.6]} 9... b6 {[%clk
0:02:44.3]} 10. Bd3 {[%clk 0:02:45.7]} 10... Bb7 {[%clk 0:02:43.8]} 11. Qf3
{[%clk 0:02:45.8]} 11... Rad8 {[%clk 0:02:26.7]} 12. Bh4 {[%clk 0:02:43]} 12...
Rc8 {[%clk 0:02:14.8]} 13. g4 {[%clk 0:02:42.8]} 13... cxd4 {[%clk 0:02:04.2]}
14. exd4 {[%clk 0:02:41.9]} 14... Ne4 {[%clk 0:01:50.2]} 15. Nxe4 {[%clk
0:02:38.2]} 15... dxe4 {[%clk 0:01:51.1]} 16. Bxe4 {[%clk 0:02:38.1]} 16... Bxe4
{[%clk 0:01:50.6]} 17. Qxe4 {[%clk 0:02:39]} 17... f6 {[%clk 0:01:40.3]} 18. Nd3
{[%clk 0:02:33.8]} 18... e5 {[%clk 0:01:33]} 19. O-O {[%clk 0:02:30.8]} 19...
exd4 {[%clk 0:01:27]} 20. cxd4 {[%clk 0:02:26.7]} 20... Rce8 {[%clk 0:01:12.5]}
21. Qd5+ {[%clk 0:02:25.1]} 21... Kh8 {[%clk 0:01:12.1]} 22. Rac1 {[%clk
0:02:24]} 22... Qb8 {[%clk 0:00:43.4]} 23. Rc6 {[%clk 0:02:23]} 23... Re3 {[%clk
0:00:41.6]} 24. Rxd6 {[%clk 0:02:22.6]} 24... Rxd3 {[%clk 0:00:41.3]} 25. Rxd7
{[%clk 0:02:22.4]} 25... Rd2 {[%clk 0:00:38.3]} 26. Bg3 {[%clk 0:02:21.6]} 26...
Qe8 {[%clk 0:00:37.4]} 27. Re1 {[%clk 0:02:17.1]} 27... Qc8 {[%clk 0:00:36.3]}
28. f5 {[%clk 0:02:15.2]} 28... Qc2 {[%clk 0:00:32.8]} 29. Rd8 {[%clk
0:02:12.3]} 29... h5 {[%clk 0:00:26.6]} 30. Rxf8+ {[%clk 0:02:11.6]} 30... Kh7
{[%clk 0:00:26.2]} 31. Qg8+ {[%clk 0:02:07.3]} 31... Kh6 {[%clk 0:00:25.2]} 32.
Bf4+ {[%clk 0:02:07.7]} 32... g5 {[%clk 0:00:25.7]} 33. Qg6# {[%clk 0:02:07.1]}
1-0